bitfinex/quotes_BTCUSD_20251124
["timestamp","ask_amount","ask_price","bid_price","bid_amount"]
[1763985943018,0.323,86379.0,86370.0,0.03480765]
[1763985943224,0.91203836,86380.0,86370.0,0.03480765]
[1763985943437,0.91203836,86380.0,86379.0,0.00839]
[1763985943647,0.323,86380.0,86379.0,0.00848923]
[1763985943872,0.323,86380.0,86379.0,0.01687923]
[1763985944870,0.323,86380.0,86379.0,0.06898172]
[1763985945072,0.01203333,86392.0,86380.0,0.05210249]
[1763985945271,0.323,86399.0,86391.0,0.00839]
[1763985945574,0.91203836,86400.0,86398.0,0.00839]
[1763985945804,0.91203836,86410.0,86399.0,0.00839]
[1763985946014,0.91203836,86410.0,86404.0,0.00839]
[1763985946015,0.323,86409.0,86404.0,0.00839]
[1763985946380,0.33531973,86409.0,86408.0,0.00839]
[1763985947446,0.33531973,86409.0,86408.0,0.00848923]
[1763985951182,0.35693112,86409.0,86408.0,0.00848923]
[1763985951552,0.35874598,86409.0,86408.0,0.01687923]
[1763985951756,0.03574598,86409.0,86408.0,0.01687923]
[1763985953109,0.05184598,86409.0,86408.0,9.923e-05]
[1763985953315,0.03574598,86409.0,86408.0,9.923e-05]
[1763985953553,0.03574598,86409.0,86408.0,0.00848923]
[1763985956297,0.03574598,86409.0,86408.0,0.01688923]
[1763985957488,0.91203836,86418.0,86408.0,0.00848923]
[1763985957687,0.09262851,86414.0,86408.0,0.00848923]
[1763985958294,0.09262851,86414.0,86413.0,0.0084]
[1763985958598,0.1044154,86414.0,86413.0,0.0084]
[1763985959184,0.01178689,86414.0,86413.0,0.0168]
[1763985959594,0.0122719,86418.0,86413.0,0.0168]
[1763985959799,0.0122719,86418.0,86414.0,0.0084]
[1763985960003,0.0004,86420.0,86417.0,0.0084]
[1763985960222,0.0004,86420.0,86419.0,0.0084]
[1763985960448,0.0004,86420.0,86408.0,9.923e-05]
[1763985960449,0.01228109,86420.0,86408.0,9.923e-05]
[1763985960648,0.91243836,86420.0,86419.0,0.0084]
[1763985960851,0.3234,86420.0,86419.0,0.0084]
[1763985961129,0.323,86419.0,86409.0,0.0084]
[1763985961318,0.09262851,86415.0,86408.0,9.923e-05]
[1763985961523,0.02812,86410.0,86408.0,9.923e-05]
[1763985962188,0.04106,86409.0,86408.0,9.923e-05]
[1763985962408,0.04265075,86409.0,86408.0,9.923e-05]
[1763985963595,0.04365075,86409.0,86408.0,0.00109923]
[1763985964042,0.04365075,86409.0,86408.0,9.923e-05]
[1763985965630,2.36665075,86409.0,86408.0,9.923e-05]
[1763985965851,2.37744797,86409.0,86408.0,9.923e-05]
[1763985966010,2.37928371,86409.0,86408.0,9.923e-05]
[1763985966217,2.36848649,86409.0,86408.0,9.923e-05]
[1763985966424,2.37928935,86409.0,86408.0,9.923e-05]
[1763985966629,2.54708456,86409.0,86408.0,9.923e-05]
[1763985966862,0.323,86406.0,86371.0,0.0084]
[1763985967050,0.09262851,86379.0,86371.0,0.0084]
[1763985967250,0.323,86380.0,86371.0,0.0084]
[1763985967726,0.323,86378.0,86371.0,0.0084]
[1763985969034,0.02496,86377.0,86366.0,0.00185639]
[1763985969752,0.02164839,86376.0,86366.0,0.00185639]
[1763985969939,0.02164839,86375.0,86366.0,0.00185639]
[1763985970152,0.02164839,86374.0,86371.0,0.001]
[1763985970360,0.02164839,86373.0,86366.0,0.00185639]
[1763985970587,0.02164839,86372.0,86366.0,0.00185639]
[1763985970778,0.02164839,86371.0,86366.0,0.00285639]
[1763985970949,0.02164839,86370.0,86366.0,0.00185639]
[1763985971152,0.323,86378.0,86371.0,0.001]
[1763985971357,0.02166202,86377.0,86371.0,0.001]
[1763985971571,0.02166202,86376.0,86372.0,0.00805]
[1763985971768,0.323,86378.0,86375.0,0.01584]
[1763985971962,0.02166196,86377.0,86375.0,0.01584]
[1763985972161,0.02166196,86376.0,86375.0,0.01584]
[1763985973348,0.02166196,86376.0,86375.0,0.03916]
[1763985973681,0.02166196,86376.0,86372.0,0.00805]
[1763985973888,0.43729047,86375.0,86372.0,0.00805]
[1763985974102,0.34466196,86374.0,86372.0,0.00805]
[1763985974307,0.02166196,86373.0,86372.0,0.00805]
[1763985975178,0.02166196,86373.0,86372.0,0.00905]
[1763985975911,0.02166196,86373.0,86372.0,0.01005]
[1763985976122,0.06126196,86373.0,86372.0,0.002]
[1763985976735,0.06126196,86373.0,86372.0,0.001]
[1763985976960,0.06126196,86373.0,86372.0,0.002]
[1763985977155,0.06126196,86373.0,86372.0,0.001]
[1763985977359,0.06126196,86373.0,86366.0,0.00185639]
[1763985977557,0.44304851,86367.0,86366.0,0.00185639]
[1763985977757,0.46471047,86367.0,86366.0,0.00185639]
[1763985978166,0.48860047,86367.0,86366.0,0.00185639]
[1763985979200,0.46471047,86367.0,86366.0,0.00185639]
[1763985979628,0.48860047,86367.0,86366.0,0.00185639]
[1763985981039,0.48856717,86367.0,86366.0,0.00185639]
[1763985981827,0.43725717,86367.0,86366.0,0.00185639]
[1763985982104,0.34462866,86367.0,86366.0,0.04197639]
[1763985982313,0.41562851,86375.0,86366.0,0.04197639]
[1763985982526,0.54436586,86376.0,86374.0,0.02413]
[1763985982731,0.02162119,86375.0,86374.0,0.02413]
[1763985982932,0.02162119,86375.0,86374.0,0.00805]
[1763985983084,0.02162119,86375.0,86374.0,0.02413]
[1763985983636,0.54436586,86384.0,86374.0,0.04817]
[1763985983839,0.34462265,86383.0,86374.0,0.04817]
[1763985984088,0.02162265,86382.0,86374.0,0.04917]
[1763985984293,0.02162265,86381.0,86374.0,0.02513]
[1763985984420,0.02162265,86380.0,86375.0,0.02404]
[1763985984615,0.02162265,86379.0,86375.0,0.02404]
[1763985984846,0.323,86383.0,86382.0,0.01608]
[1763985985043,0.06202418,86430.0,86382.0,0.01608]
[1763985985044,0.2472,86410.0,86382.0,0.02413]
[1763985985247,0.54436586,86400.0,86383.0,0.04012]
[1763985985536,0.54436586,86392.0,86383.0,0.04012]
[1763985985893,0.323,86391.0,86384.0,0.02404]
[1763985986216,0.323,86391.0,86390.0,0.01608]
[1763985987048,0.323,86399.0,86390.0,0.01619761]
[1763985987259,0.02163169,86398.0,86390.0,0.01619761]
[1763985987457,0.02163169,86397.0,86390.0,0.01619761]
[1763985987668,0.02163169,86396.0,86390.0,0.04023761]
[1763985987888,0.02163169,86395.0,86390.0,0.02515761]
[1763985988103,0.02163169,86394.0,86391.0,0.02404]
[1763985988313,0.323,86399.0,86391.0,0.02404]
[1763985988314,0.02163169,86393.0,86391.0,0.02404]
[1763985988647,0.02163169,86392.0,86391.0,0.02404]
[1763985988814,0.02163169,86392.0,86391.0,0.04012]
[1763985989013,0.02163169,86398.0,86391.0,0.04012]
[1763985989233,0.02163169,86397.0,86392.0,0.02404]
[1763985989464,0.02163169,86396.0,86392.0,0.02404]
[1763985989674,0.02163169,86395.0,86392.0,0.02404]
[1763985989871,0.02163169,86394.0,86392.0,0.02404]
[1763985990092,0.02163169,86393.0,86392.0,0.02404]
[1763985990272,0.323,86399.0,86398.0,0.01608]
[1763985990468,0.34464554,86399.0,86398.0,0.01608]
[1763985990669,0.02164554,86399.0,86398.0,0.01608]
[1763985992737,0.02164554,86399.0,86398.0,0.01708]
[1763985993064,0.02164554,86399.0,86398.0,0.01808]
[1763985993628,0.02164554,86399.0,86398.0,0.002]
[1763985994438,0.02164554,86399.0,86398.0,0.001]
[1763985995660,0.02164554,86399.0,86392.0,0.02404]
[1763985995836,0.02164554,86398.0,86397.0,0.0084]
[1763985996541,0.323,86397.0,86390.0,0.00011761]
[1763985996728,0.02164554,86396.0,86390.0,0.00011761]
[1763985998372,0.01571,86391.0,86390.0,0.00011761]
[1763985998952,0.06125679,86391.0,86390.0,0.00011761]
[1763985999969,0.06125679,86391.0,86390.0,0.00111761]
[1763986000175,0.06125679,86391.0,86390.0,0.00011761]
[1763986003175,2.38425679,86391.0,86390.0,0.00011761]
[1763986004283,2.38525679,86391.0,86390.0,0.00011761]
[1763986004408,0.323,86390.0,86364.0,0.006374]
[1763986004616,0.09262851,86369.0,86364.0,0.00647862]
[1763986005456,0.323,86368.0,86364.0,0.00010462]
[1763986005660,0.3456,86368.0,86364.0,0.00010462]
[1763986005860,0.323,86368.0,86364.0,0.00010462]
[1763986006591,0.09262851,86369.0,86367.0,0.01549]
[1763986006802,0.09262851,86369.0,86368.0,0.01549]
[1763986007022,0.54436586,86380.0,86368.0,0.01549]
[1763986007190,0.54436586,86380.0,86364.0,0.02257462]
[1763986007191,0.0216595,86379.0,86370.0,0.01549]
[1763986007406,0.323,86379.0,86370.0,0.01549]
[1763986007568,0.54436586,86380.0,86378.0,0.01549]
[1763986007961,0.323,86387.0,86379.0,0.01549]
[1763986008149,0.09262851,86385.0,86379.0,0.01549]
[1763986008276,0.41562851,86385.0,86380.0,0.02247]
[1763986008477,0.41562851,86385.0,86384.0,0.01549]
[1763986008906,0.323,86385.0,86384.0,0.03796]
[1763986009304,0.323,86393.0,86384.0,0.03796]
[1763986009594,0.02166752,86392.0,86384.0,0.03796]
[1763986009796,0.02166752,86391.0,86384.0,0.03796]
[1763986010039,0.02166752,86390.0,86384.0,0.03796]
[1763986010202,0.02166752,86389.0,86384.0,0.03796]
[1763986010399,0.02166752,86388.0,86384.0,0.01649]
[1763986010614,0.02166752,86387.0,86384.0,0.001]
[1763986010809,0.10845851,86385.0,86384.0,0.001]
[1763986011012,0.15344603,86385.0,86384.0,0.001]
[1763986011614,0.15344603,86385.0,86372.0,0.00805]
[1763986011811,0.323,86381.0,86372.0,0.00805]
[1763986012019,0.02166752,86380.0,86372.0,0.00805]
[1763986012249,0.01237,86379.0,86372.0,0.00805]
[1763986012421,0.01583,86373.0,86364.0,0.00010462]
[1763986012621,0.09262851,86370.0,86364.0,0.00010462]
[1763986016683,0.09262851,86370.0,86364.0,0.00110462]
[1763986016869,0.33537,86369.0,86364.0,0.00110462]
[1763986017954,0.35869,86369.0,86364.0,0.00010462]
[1763986018153,0.02332,86368.0,86364.0,0.00010462]
[1763986018359,0.02332,86368.0,86364.0,0.00110462]
[1763986019174,0.02332,86368.0,86364.0,0.00010462]
[1763986019404,0.00539,86369.0,86364.0,0.00110462]
[1763986019609,0.01583,86365.0,86364.0,0.00110462]
[1763986020647,0.03750748,86365.0,86364.0,0.00110462]
[1763986020853,0.04010726,86365.0,86364.0,0.00110462]
[1763986021058,0.04010726,86365.0,86364.0,0.00010462]
[1763986021275,2.12637193,86365.0,86320.0,0.01142]
[1763986021487,0.09262851,86321.0,86320.0,0.00010468]
[1763986021944,0.4685285,86321.0,86320.0,0.00010468]
[1763986022368,0.49020533,86321.0,86320.0,0.00010468]
[1763986022577,0.49017374,86321.0,86320.0,0.00010468]
[1763986023391,0.45102374,86321.0,86320.0,0.00010468]
[1763986023595,0.01374999,86321.0,86320.0,0.03816468]
[1763986023801,0.01374999,86321.0,86320.0,0.01559468]
[1763986023975,0.323,86327.0,86320.0,0.01559468]
[1763986024189,0.09262851,86321.0,86320.0,0.01559468]
[1763986024620,0.10617369,86321.0,86320.0,0.03816468]
[1763986025241,0.01354518,86321.0,86320.0,0.03816468]
[1763986025639,0.001,86327.0,86320.0,0.03963082]
[1763986025844,0.323,86329.0,86326.0,0.01549]
[1763986025982,0.02159839,86328.0,86326.0,0.01549]
[1763986026191,0.323,86333.0,86326.0,0.01549]
[1763986026192,0.02159839,86327.0,86326.0,0.01549]
[1763986026844,0.02159839,86327.0,86326.0,0.03806]
[1763986027245,0.01400492,86329.0,86326.0,0.03806]
[1763986027453,1.08873172,86340.0,86328.0,0.01549]
[1763986027663,1.08873172,86340.0,86333.0,0.02174]
[1763986027832,0.11421529,86334.0,86333.0,0.02174]
[1763986028183,0.34458678,86334.0,86333.0,0.04431]
[1763986028604,0.35868666,86334.0,86333.0,0.04431]
[1763986028994,0.323,86333.0,86328.0,0.00625]
[1763986029193,0.09262851,86329.0,86328.0,0.00625]
[1763986029411,0.323,86328.0,86320.0,0.00010468]
[1763986029638,0.02158821,86327.0,86320.0,0.00010468]
[1763986029792,0.02158821,86326.0,86320.0,0.00010468]
[1763986029988,0.323,86328.0,86320.0,0.00010468]
[1763986030195,0.02158622,86327.0,86320.0,0.00010468]
[1763986030396,0.01583,86321.0,86320.0,0.00010468]
[1763986030617,0.03741622,86321.0,86320.0,0.00010468]
[1763986031420,0.06073622,86321.0,86320.0,0.00010468]
[1763986031937,0.06073622,86321.0,86320.0,0.00157082]
[1763986033459,0.02158622,86321.0,86320.0,0.00157082]
[1763986034279,0.06058622,86321.0,86320.0,0.00157082]
[1763986035568,0.02158622,86321.0,86320.0,0.00157082]
[1763986038158,0.06058622,86321.0,86320.0,0.00157082]
[1763986039020,0.06523224,86321.0,86320.0,0.00157082]
[1763986041199,0.07602592,86321.0,86320.0,0.00157082]
[1763986041630,2.39902592,86321.0,86320.0,0.00157082]
[1763986041800,0.323,86318.0,86300.0,0.0004]
[1763986041998,0.43156851,86311.0,86310.0,0.00079025]
[1763986042201,0.46395307,86311.0,86310.0,0.00079025]
[1763986042403,0.48701307,86311.0,86310.0,0.00079025]
[1763986042763,0.46859955,86311.0,86310.0,0.0011091]
[1763986043526,0.46395307,86311.0,86310.0,0.0011091]
[1763986044151,0.48701307,86311.0,86310.0,0.0011091]
[1763986044621,0.43721473,86311.0,86310.0,0.0011091]
[1763986045279,0.43721473,86311.0,86310.0,0.0168291]
[1763986045490,0.43721473,86311.0,86310.0,0.0409491]
[1763986045887,0.43721473,86311.0,86310.0,0.0168291]
[1763986046470,0.43721473,86311.0,86310.0,0.0011091]
[1763986046654,0.45315473,86311.0,86310.0,0.0011091]
[1763986046856,0.47621473,86311.0,86310.0,0.0011091]
[1763986047268,0.48703829,86311.0,86310.0,0.0011091]
[1763986047839,0.44803829,86311.0,86310.0,0.0011091]
[1763986049098,0.48803829,86311.0,86310.0,0.0011091]
[1763986049516,0.48806256,86311.0,86310.0,0.0011091]
[1763986049749,0.44806256,86311.0,86310.0,0.0011091]
[1763986050767,0.35543405,86311.0,86310.0,0.0409491]
[1763986051118,0.34458622,86311.0,86310.0,0.0409491]
[1763986051316,0.35543692,86311.0,86310.0,0.0409491]
[1763986052025,0.35543692,86311.0,86310.0,0.0011091]
[1763986052224,0.355437,86311.0,86310.0,0.0011091]
[1763986053432,0.371377,86311.0,86310.0,0.0011091]
[1763986053645,0.394437,86311.0,86310.0,0.0011091]
[1763986055413,0.355437,86311.0,86310.0,0.0011091]
[1763986056422,0.394437,86311.0,86310.0,0.0011091]
[1763986058321,0.355437,86311.0,86310.0,0.0011091]
[1763986060482,0.355437,86311.0,86310.0,0.0168291]
[1763986061112,0.394437,86311.0,86310.0,0.0011091]
[1763986061752,0.371377,86311.0,86310.0,0.0011091]
[1763986061973,0.355437,86311.0,86310.0,0.0011091]
[1763986062586,0.355437,86311.0,86310.0,0.0168291]
[1763986063133,0.355437,86311.0,86310.0,0.0409491]
[1763986066231,0.355437,86311.0,86310.0,0.0011091]
[1763986069189,0.355437,86311.0,86310.0,0.0397391]
[1763986070528,0.355437,86311.0,86310.0,0.0171491]
[1763986070748,0.355437,86311.0,86310.0,0.0011091]
[1763986070749,0.371517,86311.0,86310.0,0.0011091]
[1763986070868,0.355437,86311.0,86310.0,0.0011091]
[1763986071072,0.34458622,86311.0,86310.0,0.0011091]
[1763986075231,0.34475756,86311.0,86310.0,0.0011091]
[1763986075789,0.34475756,86311.0,86310.0,0.0397391]
[1763986080334,0.34475756,86311.0,86310.0,0.0171491]
[1763986080538,0.34475756,86311.0,86310.0,0.0011091]
[1763986082421,0.34475756,86311.0,86310.0,0.0397391]
[1763986084420,0.02175756,86311.0,86310.0,0.0397391]
[1763986084827,0.91402047,86320.0,86310.0,0.0397391]
[1763986085032,1.23702047,86320.0,86319.0,0.02772]
[1763986085253,0.34475279,86320.0,86319.0,0.02772]
[1763986085459,0.34475279,86320.0,86319.0,0.05031]
[1763986085788,0.02175279,86320.0,86319.0,0.05031]
[1763986085996,0.91402047,86329.0,86319.0,0.05031]
[1763986086156,0.02174864,86328.0,86319.0,0.05031]
[1763986086380,0.02174864,86327.0,86320.0,0.02259]
[1763986086584,0.02174864,86326.0,86320.0,0.02259]
[1763986086746,0.02174864,86325.0,86320.0,0.02259]
[1763986086945,0.02174864,86324.0,86320.0,0.02259]
[1763986087208,0.02174864,86323.0,86320.0,0.02259]
[1763986087407,0.02174864,86322.0,86320.0,0.02259]
[1763986087613,0.02174864,86321.0,86320.0,0.02259]
[1763986087975,0.91402047,86329.0,86320.0,0.03863]
[1763986088168,0.91402047,86329.0,86320.0,0.02259]
[1763986088390,0.91402047,86329.0,86328.0,0.01604]
[1763986088605,0.91402047,86338.0,86328.0,0.01604]
[1763986088800,0.02172214,86333.0,86329.0,0.02259]
[1763986089001,0.11435065,86332.0,86319.0,0.01168]
[1763986089208,0.323,86328.0,86319.0,0.01168]
[1763986089383,0.02172214,86327.0,86319.0,0.01168]
[1763986089663,0.03984146,86334.0,86320.0,0.02259]
[1763986089664,0.02172214,86326.0,86320.0,0.02259]
[1763986089835,0.323,86329.0,86320.0,0.02259]
[1763986090033,0.02171968,86328.0,86320.0,0.02259]
[1763986090375,0.91402047,86330.0,86320.0,0.02259]
[1763986090376,0.91402047,86330.0,86328.0,0.01604]
[1763986090581,0.01522417,86334.0,86329.0,0.01604]
[1763986090783,0.01522417,86334.0,86333.0,0.02772]
[1763986090940,0.02171347,86334.0,86333.0,0.02772]
[1763986091141,0.02171347,86334.0,86333.0,0.05031]
[1763986092109,0.02171347,86334.0,86333.0,0.01168]
[1763986092308,0.0373282,86334.0,86333.0,0.01168]
[1763986092896,0.0373282,86334.0,86333.0,0.01168]
[1763986093310,0.0373282,86334.0,86333.0,0.02772]
[1763986094247,0.01561473,86334.0,86333.0,0.02772]
[1763986094456,0.323,86337.0,86333.0,0.01168]
[1763986094651,0.09262851,86334.0,86333.0,0.01168]
[1763986095086,0.323,86335.0,86333.0,0.0267]
[1763986095696,0.01510212,86335.0,86334.0,0.03862]
[1763986095937,0.02169262,86341.0,86334.0,0.03862]
[1763986096124,0.02169262,86340.0,86334.0,0.03862]
[1763986096326,0.02169262,86339.0,86334.0,0.03862]
[1763986096484,0.02169262,86338.0,86334.0,0.03862]
[1763986096686,0.33835842,86342.0,86333.0,0.01168]
[1763986096687,0.02169262,86337.0,86333.0,0.01168]
[1763986096890,0.09262851,86334.0,86333.0,0.01168]
[1763986097092,0.323,86333.0,86319.0,0.01168]
[1763986097294,0.323,86328.0,86319.0,0.01168]
[1763986097496,0.02169055,86327.0,86320.0,0.0236]
[1763986097712,0.02169055,86327.0,86319.0,0.01168]
[1763986099686,0.09262851,86321.0,86312.0,0.02385508]
[1763986099913,0.34469645,86320.0,86312.0,0.00025508]
[1763986100061,0.323,86320.0,86319.0,0.001]
[1763986100265,0.34469686,86320.0,86319.0,0.001]
[1763986100676,0.34469686,86320.0,86312.0,0.00025508]
[1763986100835,0.02169686,86319.0,86312.0,0.00025508]
[1763986101033,0.02169686,86319.0,86312.0,0.00125508]
[1763986101231,0.323,86321.0,86318.0,0.01502]
[1763986101445,0.02170028,86320.0,86318.0,0.01502]
[1763986101788,0.323,86321.0,86312.0,0.00025508]
[1763986101789,0.323,86321.0,86320.0,0.01502]
[1763986102024,0.323,86321.0,86320.0,0.03862]
[1763986102353,0.54500428,86328.0,86320.0,0.03862]
[1763986102354,0.323,86327.0,86320.0,0.03862]
[1763986102557,0.323,86327.0,86320.0,0.0236]
[1763986102781,0.323,86327.0,86326.0,0.02659]
[1763986103524,0.323,86338.0,86326.0,0.05019]
[1763986103705,0.323,86338.0,86333.0,0.01502]
[1763986103907,0.43732794,86334.0,86333.0,0.01502]
[1763986104673,0.43732794,86334.0,86333.0,0.03862]
[1763986104904,0.34469943,86334.0,86333.0,0.03862]
[1763986106650,0.34469943,86334.0,86333.0,0.03962]
[1763986106849,0.34469943,86334.0,86333.0,0.001]
[1763986108085,0.34469943,86334.0,86333.0,0.03962]
[1763986109422,0.34469943,86334.0,86333.0,0.01602]
[1763986109633,0.34469943,86334.0,86333.0,0.001]
[1763986111412,0.34469943,86334.0,86333.0,0.01602]
[1763986111629,0.34469943,86334.0,86333.0,0.03962]
[1763986112630,0.34469943,86334.0,86333.0,0.01602]
[1763986114377,0.36016943,86334.0,86333.0,0.001]
[1763986114576,0.36016943,86334.0,86312.0,0.00025508]
[1763986114577,2.323,86333.0,86312.0,0.00025508]
[1763986114781,0.323,86312.0,86300.0,0.0004]
[1763986114982,0.02593,86301.0,86300.0,0.0004]
[1763986115140,0.04762943,86301.0,86300.0,0.0004]
[1763986115341,0.03215943,86301.0,86300.0,0.0004]
[1763986115917,0.02169943,86301.0,86300.0,0.0004]
[1763986116082,0.01046,86306.0,86300.0,0.0004]
[1763986116083,0.02169943,86305.0,86300.0,0.0004]
[1763986118076,0.01046,86306.0,86300.0,0.0004]
[1763986118272,0.02169566,86305.0,86300.0,0.0004]
[1763986118475,0.01046,86306.0,86300.0,0.0004]
[1763986118476,0.02169566,86304.0,86300.0,0.0004]
[1763986118712,0.02169566,86303.0,86300.0,0.0004]
[1763986118913,0.02169566,86302.0,86300.0,0.0004]
[1763986119112,0.02169566,86301.0,86300.0,0.0004]
[1763986119984,0.02169566,86301.0,86300.0,0.03902]
[1763986120155,0.00039051,86312.0,86300.0,0.03902]
[1763986120156,0.54500428,86310.0,86300.0,0.03902]
[1763986120369,0.54500428,86310.0,86301.0,0.0467747]
[1763986120522,0.86800428,86310.0,86309.0,0.02659]
[1763986120724,0.323,86310.0,86309.0,0.02659]
[1763986120979,0.323,86310.0,86309.0,0.05019]
[1763986121156,0.00039051,86312.0,86309.0,0.05019]
[1763986121447,0.00039051,86312.0,86311.0,0.01502]
[1763986121678,0.00039051,86312.0,86311.0,0.03862]
[1763986123196,0.00039051,86312.0,86309.0,0.01157]
[1763986123197,0.03935051,86312.0,86300.0,0.0004]
[1763986123336,0.09262851,86305.0,86300.0,0.0004]
[1763986123536,0.323,86309.0,86301.0,0.02458]
[1763986123795,0.323,86309.0,86308.0,0.0156]
[1763986124518,0.00039051,86312.0,86308.0,0.04018]
[1763986124830,0.00039051,86312.0,86311.0,0.0156]
[1763986125219,0.02206597,86312.0,86311.0,0.0156]
[1763986125425,0.02206597,86312.0,86311.0,0.04018]
[1763986126034,0.00039051,86312.0,86311.0,0.04018]
[1763986127740,0.00039051,86312.0,86311.0,0.05205]
[1763986128342,0.00039051,86312.0,86311.0,0.05171]
[1763986131538,0.00039051,86312.0,86311.0,0.02747]
[1763986133308,0.00039051,86312.0,86311.0,0.01187]
[1763986134212,0.00039051,86312.0,86304.0,0.00025511]
[1763986134213,2.0,86311.0,86304.0,0.00025511]
[1763986134422,0.323,86299.0,86280.0,0.0004]
[1763986134626,2.34866,86291.0,86280.0,0.0004]
[1763986134828,2.3703402,86291.0,86280.0,0.0004]
[1763986135068,2.3936002,86291.0,86280.0,0.0004]
[1763986136189,2.3946002,86291.0,86280.0,0.0004]
[1763986138622,0.323,86290.0,86280.0,0.0004]
[1763986138855,0.323,86290.0,86260.0,0.0002]
[1763986138856,0.323,86267.0,86260.0,0.0002]
[1763986139069,2.34866,86261.0,86260.0,0.0002]
[1763986139279,2.38116857,86261.0,86260.0,0.0002]
[1763986139454,2.40442857,86261.0,86260.0,0.0002]
[1763986139683,2.3936002,86261.0,86260.0,0.0002]
[1763986139886,2.4044192,86261.0,86260.0,0.0002]
[1763986140109,2.41691923,86261.0,86260.0,0.0002]
[1763986140320,0.05210249,86257.0,86214.0,0.02424]
[1763986140526,0.02566,86231.0,86217.0,0.01211]
[1763986140706,0.0473402,86231.0,86217.0,0.01211]
[1763986140839,0.0473402,86231.0,86230.0,0.00256189]
[1763986141047,0.0321402,86231.0,86230.0,0.00256189]
[1763986141328,0.04662882,86231.0,86230.0,0.00256189]
[1763986141774,0.04701861,86231.0,86230.0,0.00256189]
[1763986141969,0.04694341,86231.0,86230.0,0.00256189]
[1763986142176,0.04694341,86231.0,86190.0,0.01999998]
[1763986142177,2.0,86230.0,86190.0,0.01999998]
[1763986142379,2.0,86230.0,86189.0,0.02424]
[1763986142380,0.323,86218.0,86189.0,0.02424]
[1763986142717,0.323,86220.0,86184.0,0.01211]
[1763986142718,0.02566,86211.0,86184.0,0.01211]
[1763986142953,0.047265,86211.0,86184.0,0.01211]
[1763986143122,0.070525,86211.0,86184.0,0.01211]
[1763986143526,2.4328775,86211.0,86184.0,0.01211]
[1763986143706,2.393525,86211.0,86184.0,0.01211]
[1763986143909,0.323,86208.0,86182.0,0.000397]
[1763986144111,0.09262851,86183.0,86182.0,0.000397]
[1763986144316,0.43723351,86183.0,86182.0,0.000397]
[1763986145299,0.43762306,86183.0,86182.0,0.000397]
[1763986145840,0.43762306,86183.0,86182.0,0.001397]
[1763986146471,0.34499455,86183.0,86182.0,0.001397]
[1763986146632,0.34499455,86183.0,86182.0,0.003397]
[1763986146849,0.38345455,86183.0,86182.0,0.003397]
[1763986147062,0.36019455,86183.0,86182.0,0.002397]
[1763986147265,0.34499455,86183.0,86182.0,0.002397]
[1763986147474,0.34499455,86183.0,86182.0,0.000397]
[1763986147675,0.34499455,86183.0,86182.0,0.001397]
[1763986147940,0.34499455,86183.0,86182.0,0.017327]
[1763986148171,0.34499455,86183.0,86182.0,0.040567]
[1763986148370,0.34499455,86183.0,86182.0,0.04310055]
[1763986148929,0.02199455,86183.0,86182.0,0.04310055]
[1763986149131,0.02199455,86183.0,86182.0,0.04410055]
[1763986149497,0.02199455,86183.0,86182.0,0.00393055]
[1763986149703,0.02199455,86183.0,86182.0,0.04410055]
[1763986149898,0.02199455,86183.0,86182.0,0.04310055]
[1763986150331,0.02199455,86183.0,86182.0,0.04410055]
[1763986153017,0.02199455,86183.0,86182.0,0.04310055]
[1763986153256,0.02199455,86183.0,86182.0,0.04210055]
[1763986153444,0.02199455,86183.0,86182.0,0.04410055]
[1763986153688,0.00038955,86183.0,86182.0,0.04510055]
[1763986153976,0.00038955,86183.0,86182.0,0.04310055]
[1763986154138,0.00038955,86183.0,86182.0,0.04410055]
[1763986154354,0.00038955,86183.0,86182.0,0.09420304]
[1763986154545,0.00038955,86183.0,86182.0,0.09520304]
[1763986154725,0.00038955,86183.0,86182.0,0.09720304]
[1763986154927,0.00038955,86183.0,86182.0,0.09620304]
[1763986155329,0.00038955,86183.0,86182.0,0.09720304]
[1763986155771,0.54500428,86220.0,86182.0,0.09720304]
[1763986155772,0.54500428,86220.0,86183.0,0.05210249]
[1763986155920,0.54500428,86220.0,86219.0,0.02867]
[1763986156124,0.02136698,86220.0,86219.0,0.02867]
[1763986156768,0.02136698,86220.0,86219.0,0.05282]
[1763986157167,0.02136698,86220.0,86219.0,0.05293703]
[1763986158808,0.02136698,86220.0,86219.0,0.00011703]
[1763986159510,0.02136698,86220.0,86219.0,0.00111703]
[1763986159726,0.02136698,86220.0,86219.0,0.00011703]
[1763986160362,0.02136698,86220.0,86219.0,0.01667703]
[1763986160618,0.06092698,86220.0,86219.0,0.00011703]
[1763986160912,0.0626683,86220.0,86219.0,0.00011703]
[1763986161303,0.0626683,86220.0,86219.0,0.00046831]
[1763986161490,0.06092698,86220.0,86219.0,0.00046831]
[1763986162747,2.06806568,86220.0,86180.0,0.02415]
[1763986162942,2.06806568,86220.0,86186.0,0.01246]
[1763986162943,0.323,86193.0,86186.0,0.01246]
[1763986163149,0.02136698,86192.0,86184.0,0.00011706]
[1763986163319,0.02136698,86191.0,86184.0,0.00011706]
[1763986163522,0.02136698,86190.0,86185.0,0.00831]
[1763986163680,0.02136698,86189.0,86185.0,0.00831]
[1763986163877,0.02136698,86188.0,86185.0,0.00831]
[1763986164083,0.02136698,86187.0,86185.0,0.00831]
[1763986164283,0.02136698,86186.0,86185.0,0.00831]
[1763986164670,0.02136698,86186.0,86185.0,0.04902]
[1763986165501,0.02136698,86186.0,86185.0,0.07222589]
[1763986166127,0.02136698,86186.0,86185.0,0.07322589]
[1763986166331,0.02136698,86186.0,86185.0,0.04902]
[1763986166508,0.02136698,86186.0,86185.0,0.05002]
[1763986166742,0.02136698,86186.0,86185.0,0.05102]
[1763986168347,0.16780995,86199.0,86185.0,0.02687]
[1763986168549,0.16780995,86199.0,86186.0,0.02415]
[1763986168750,0.91575265,86200.0,86198.0,0.01656]
[1763986168950,1.00838116,86208.0,86199.0,0.02902]
[1763986169182,0.01083065,86207.0,86199.0,0.02902]
[1763986169381,0.01083065,86206.0,86199.0,0.02902]
[1763986169582,0.01083065,86205.0,86199.0,0.02902]
[1763986169792,0.01083065,86204.0,86199.0,0.02902]
[1763986169993,0.01083065,86203.0,86199.0,0.02902]
[1763986170168,0.01083065,86202.0,86199.0,0.02902]
[1763986170370,0.01083065,86201.0,86199.0,0.02902]
[1763986170583,0.01083065,86200.0,86199.0,0.02902]
[1763986170756,0.01083065,86206.0,86199.0,0.01246]